[Event "HUN-chT Youth-Children 2018"]
[Site "Zalakaros"]
[Date "2018.07.26"]
[Round "2"]
[White "Horvath, Balazs"]
[Black "Buzas, Bertalan"]
[Result "0-1"]
[ECO "A05"]
[WhiteElo "2039"]
[BlackElo "2230"]
[Annotator "NA"]
[PlyCount "110"]
[EventDate "2018.07.26"]
[EventType "team-tourn"]
[EventCountry "HUN"]
[SourceTitle "playchess.com"]
[Source "ChessBase"]
[SourceQuality "1"]
[TimeControl "5400+30"]

1. Nf3 {[%emt 0:00:00]} Nf6 {[%emt 0:01:22]} 2. g3 {[%emt 0:00:03]} e6 3. Bg2 {[%emt 0:02:48]} d5 {[%emt 0:03:21]} 4. d4 {[%emt 0:00:59]} b5 {[%emt 0:00:11]} 5. O-O {[%emt 0:01:32]} Be7 {[%emt 0:00:26]} 6. Ne5 {[%emt 0:01:23]} Bb7 {[%emt 0:03:44]} 7. c3 {[%emt 0:04:39]} O-O 8. Bg5 {[%emt 0:06:59]} Nfd7 {[%emt 0:05:08]} 9. Bxe7 {[%emt 0:00:48]} Qxe7 {[%emt 0:00:07]} 10. Nd3 {[%emt 0:02:10]} c5 {[%emt 0:02:53]} 11. dxc5 {[%emt 0:08:52]} Nxc5 {[%emt 0:01:06]} 12. Nxc5 {[%emt 0:01:37]} Qxc5 {[%emt 0:00:06]} 13. Nd2 Nd7 {[%emt 0:05:38]} 14. Nb3 {[%emt 0:02:19]} Qc7 {[%emt 0:00:29]} 15. Nd4 {[%emt 0:02:06]} a6 {[%emt 0:00:43]} 16. f4 {[%emt 0:02:41]} Nb6 {[%emt 0:00:20]} 17. Qd3 {[%emt 0:01:32]} Nc4 {[%emt 0:00:25]} 18. b3 {[%emt 0:01:29]} Nd6 {[%emt 0:00:57]} 19. a4 {[%emt 0:04:17]} bxa4 {[%emt 0:04:14]} 20. Rxa4 {[%emt 0:02:22]} Rfc8 {[%emt 0:00:54]} 21. Rc1 {[%emt 0:02:42]} a5 {[%emt 0:01:46]} 22. e3 {[%emt 0:04:24]} Qb6 {[%emt 0:02:16]} 23. Ra2 {[%emt 0:15:41]} Rc7 {[%emt 0:01:52]} 24. Rca1 {[%emt 0:06:56]} Rac8 {[%emt 0:03:02]} 25. Rc2 {[%emt 0:02:45]} Ba6 {[%emt 0:02:27]} 26. Qd2 {[%emt 0:01:07]} Nb5 {[%emt 0:03:17]} 27. Nxb5 {[%emt 0:00:38]} Bxb5 {[%emt 0:07:11]} 28. Rb1 {[%emt 0:06:56]} Ba6 {[%emt 0:02:06]} 29. Rbb2 {[%emt 0:02:03]} Rc5 {[%emt 0:00:35]} 30. Rc1 {[%emt 0:02:25]} Qc7 {[%emt 0:09:34]} 31. Rbc2 {[%emt 0:00:58]} h6 {[%emt 0:06:12]} 32. Bf1 {[%emt 0:03:35]} Bxf1 {[%emt 0:00:11]} 33. Kxf1 {[%emt 0:00:07]} Qb7 {[%emt 0:00:08]} 34. b4 {[%emt 0:06:17]} axb4 {[%emt 0:03:44]} 35. cxb4 {[%emt 0:00:09]} Rxc2 {[%emt 0:00:13]} 36. Rxc2 {[%emt 0:00:06]} Rxc2 {[%emt 0:00:05]} 37. Qxc2 {[%emt 0:00:04]} Qxb4 {[%emt 0:00:05]} 38. Kf2 {[%emt 0:02:10]} Qe4 {[%emt 0:02:03]} 39. Qc8+ {[%emt 0:00:32]} Kh7 {[%emt 0:00:06]} 40. Qc5 {[%emt 0:00:35]} f6 {[%emt 0:02:39]} 41. h4 {[%emt 0:00:54]} e5 {[%emt 0:00:24]} 42. fxe5 {[%emt 0:00:35]} fxe5 {[%emt 0:00:14]} 43. Qc8 {[%emt 0:00:39]} d4 {[%emt 0:00:17]} 44. exd4 {[%emt 0:00:04]} exd4 {[%emt 0:00:18]} 45. Qc1 {[%emt 0:00:27]} Kg6 {[%emt 0:01:15]} 46. Qd1 {[%emt 0:00:59]} d3 {[%emt 0:01:31]} 47. Qd2 {[%emt 0:00:22]} Kf5 {[%emt 0:00:49]} 48. Qd1 {[%emt 0:00:32]} Qd4+ {[%emt 0:02:23]} 49. Kg2 {[%emt 0:00:09]} d2 {[%emt 0:02:58]} 50. Qh5+ {[%emt 0:00:44]} Kf6 {[%emt 0:00:15]} 51. Qf3+ {[%emt 0:00:21]} Ke5 {[%emt 0:00:07]} 52. Qd1 {[%emt 0:00:23]} g5 {[%emt 0:01:58]} 53. hxg5 {[%emt 0:00:16]} hxg5 {[%emt 0:00:03]} 54. Kf3 {[%emt 0:01:14]} Qd3+ {[%emt 0:01:13]} 55. Kf2 {[%emt 0:00:10]} g4 {[%emt 0:03:00]} 0-1

[Event "HUN-chT Youth-Children 2018"]
[Site "Zalakaros"]
[Date "2018.07.26"]
[Round "2"]
[White "Kertesz, Zsolt"]
[Black "Birovecz, Ben Jordan"]
[Result "1/2-1/2"]
[ECO "A43"]
[WhiteElo "2034"]
[BlackElo "1901"]
[Annotator "NA"]
[PlyCount "102"]
[EventDate "2018.07.26"]
[EventType "team-tourn"]
[EventCountry "HUN"]
[SourceTitle "playchess.com"]
[Source "ChessBase"]
[SourceQuality "1"]
[TimeControl "5400+30"]

1. d4 {[%emt 0:00:00]} c5 {[%emt 0:00:45]} 2. e3 {[%emt 0:00:00]} Nc6 {[%emt 0:01:16]} 3. Nf3 {[%emt 0:00:03]} d6 {[%emt 0:00:12]} 4. Be2 {[%emt 0:01:29]} g6 {[%emt 0:00:19]} 5. O-O {[%emt 0:00:27]} Bg7 {[%emt 0:00:09]} 6. dxc5 {[%emt 0:02:20]} dxc5 {[%emt 0:03:36]} 7. Qxd8+ {[%emt 0:00:11]} Nxd8 {[%emt 0:01:14]} 8. Bb5+ {[%emt 0:03:22]} Nc6 {[%emt 0:02:43]} 9. Bxc6+ {[%emt 0:01:09]} bxc6 {[%emt 0:00:02]} 10. e4 {[%emt 0:00:49]} Nf6 {[%emt 0:03:26]} 11. Nc3 {[%emt 0:10:21]} Rb8 {[%emt 0:03:33]} 12. Rb1 {[%emt 0:03:17]} Be6 {[%emt 0:04:19]} 13. Ng5 {[%emt 0:16:20]} Bc4 {[%emt 0:02:29]} 14. Re1 {[%emt 0:01:13]} Nd7 {[%emt 0:08:05]} 15. Bd2 {[%emt 0:07:21]} O-O {[%emt 0:04:09]} 16. b3 {[%emt 0:01:05]} Ba6 {[%emt 0:00:58]} 17. Na4 {[%emt 0:05:37]} c4 {[%emt 0:02:00]} 18. Bc3 {[%emt 0:01:25]} cxb3 {[%emt 0:09:30]} 19. axb3 {[%emt 0:01:30]} c5 {[%emt 0:06:52]} 20. Bxg7 {[%emt 0:02:31]} Kxg7 {[%emt 0:01:56]} 21. e5 {[%emt 0:05:13]} e6 {[%emt 0:04:29]} 22. Rbd1 {[%emt 0:02:39]} Rfd8 {[%emt 0:00:44]} 23. Rxd7 {[%emt 0:03:24]} Rxd7 {[%emt 0:02:00]} 24. Nxc5 {[%emt 0:00:13]} Rd2 {[%emt 0:00:39]} 25. Nxa6 {[%emt 0:01:01]} Rb6 {[%emt 0:02:23]} 26. Nc5 {[%emt 0:01:38]} Rxc2 {[%emt 0:00:46]} 27. Nge4 {[%emt 0:09:31]} Rb5 {[%emt 0:04:31]} 28. Ra1 {[%emt 0:05:47]} g5 {[%emt 0:18:34]} 29. g3 {[%emt 0:07:17]} a5 {[%emt 0:05:15]} 30. Nd7 {[%emt 0:03:05]} Rd5 {[%emt 0:03:51]} 31. Nec5 {[%emt 0:03:55]} Rcxc5 {[%emt 0:03:48]} 32. Nxc5 {[%emt 0:00:12]} Rxc5 {[%emt 0:00:01]} 33. f4 {[%emt 0:00:45]} gxf4 {[%emt 0:01:07]} 34. gxf4 {[%emt 0:00:01]} Kg6 {[%emt 0:01:06]} 35. Ra4 {[%emt 0:00:45]} Kf5 {[%emt 0:00:31]} 36. Kg2 {[%emt 0:00:27]} Rb5 {[%emt 0:00:35]} 37. Kf2 {[%emt 0:00:16]} Rxb3 {[%emt 0:00:23]} 38. Rxa5 {[%emt 0:01:07]} Kxf4 {[%emt 0:00:29]} 39. Ra7 {[%emt 0:00:13]} Rf3+ {[%emt 0:00:35]} 40. Kg2 {[%emt 0:00:18]} Re3 {[%emt 0:00:37]} 41. Rxf7+ {[%emt 0:00:23]} Kxe5 {[%emt 0:00:13]} 42. Rxh7 {[%emt 0:00:21]} Kd4 {[%emt 0:00:41]} 43. Rd7+ {[%emt 0:00:30]} Ke4 {[%emt 0:00:12]} 44. h4 {[%emt 0:00:26]} Re2+ {[%emt 0:00:18]} 45. Kg3 {[%emt 0:00:23]} e5 {[%emt 0:00:38]} 46. Rf7 {[%emt 0:00:47]} Kd3 {[%emt 0:00:55]} 47. h5 {[%emt 0:00:28]} Re1 {[%emt 0:00:28]} 48. Rf3+ {[%emt 0:01:29]} Kd2 {[%emt 0:00:31]} 49. Rf2+ {[%emt 0:00:13]} Kd3 {[%emt 0:00:22]} 50. h6 {[%emt 0:00:23]} Ra1 {[%emt 0:00:35]} 51. Rf8 Ra2 1/2-1/2

[Event "HUN-chT Youth-Children 2018"]
[Site "Zalakaros"]
[Date "2018.07.26"]
[Round "2"]
[White "Kovacs, Gabor Etele"]
[Black "Czupor, Attila"]
[Result "0-1"]
[ECO "C60"]
[WhiteElo "1999"]
[BlackElo "2239"]
[Annotator "NA"]
[PlyCount "100"]
[EventDate "2018.07.26"]
[EventType "team-tourn"]
[EventCountry "HUN"]
[SourceTitle "playchess.com"]
[Source "ChessBase"]
[SourceQuality "1"]
[TimeControl "5400+30"]

1. e4 {[%emt 0:00:00]} e5 {[%emt 0:00:27]} 2. Nf3 {[%emt 0:00:00]} Nc6 {[%emt 0:00:18]} 3. Bb5 {[%emt 0:00:00]} Nge7 {[%emt 0:00:20]} 4. O-O {[%emt 0:00:17]} a6 {[%emt 0:01:52]} 5. Ba4 {[%emt 0:02:00]} g6 {[%emt 0:00:09]} 6. c3 {[%emt 0:00:35]} Bg7 {[%emt 0:00:07]} 7. d4 {[%emt 0:00:41]} exd4 {[%emt 0:00:31]} 8. cxd4 {[%emt 0:00:02]} O-O {[%emt 0:00:27]} 9. Nc3 {[%emt 0:01:39]} b5 {[%emt 0:00:21]} 10. Bc2 {[%emt 0:00:18]} d6 {[%emt 0:00:36]} 11. h3 {[%emt 0:01:09]} Na5 {[%emt 0:02:08]} 12. b3 {[%emt 0:11:09]} c5 {[%emt 0:00:50]} 13. Be3 {[%emt 0:01:49]} b4 {[%emt 0:07:49]} 14. Ne2 {[%emt 0:09:12]} c4 {[%emt 0:02:55]} 15. Qd2 {[%emt 0:04:30]} c3 {[%emt 0:06:36]} 16. Qc1 {[%emt 0:00:30]} d5 {[%emt 0:00:46]} 17. a3 {[%emt 0:12:35]} dxe4 {[%emt 0:04:11]} 18. Bxe4 {[%emt 0:04:29]} Nxb3 {[%emt 0:02:59]} 19. Qd1 {[%emt 0:00:51]} c2 {[%emt 0:03:37]} 20. Qxc2 {[%emt 0:04:15]} Nxa1 {[%emt 0:00:34]} 21. Rxa1 {[%emt 0:00:14]} Bf5 {[%emt 0:01:49]} 22. axb4 {[%emt 0:02:14]} Bxe4 {[%emt 0:02:27]} 23. Qxe4 {[%emt 0:00:02]} Nd5 {[%emt 0:01:02]} 24. Bd2 {[%emt 0:17:02]} Re8 {[%emt 0:03:32]} 25. Qd3 {[%emt 0:00:56]} Qe7 {[%emt 0:03:46]} 26. Ng3 {[%emt 0:04:05]} Nxb4 {[%emt 0:01:16]} 27. Bxb4 {[%emt 0:02:51]} Qxb4 {[%emt 0:00:03]} 28. Rxa6 {[%emt 0:00:17]} Rxa6 {[%emt 0:04:13]} 29. Qxa6 {[%emt 0:00:35]} Bxd4 {[%emt 0:00:34]} 30. Nxd4 {[%emt 0:01:40]} Qxd4 {[%emt 0:00:13]} 31. Qb5 {[%emt 0:07:04]} Re1+ {[%emt 0:01:55]} 32. Nf1 {[%emt 0:00:04]} h6 {[%emt 0:02:16]} 33. Qa6 {[%emt 0:01:05]} Qe5 {[%emt 0:02:52]} 34. Qc8+ {[%emt 0:01:38]} Kg7 {[%emt 0:00:15]} 35. Qc4 {[%emt 0:00:39]} Qe2 {[%emt 0:03:06]} 36. Qxe2 {[%emt 0:00:09]} Rxe2 {[%emt 0:00:02]} 37. h4 {[%emt 0:00:09]} f5 {[%emt 0:01:46]} 38. g3 {[%emt 0:02:06]} Kf6 {[%emt 0:02:06]} 39. Kg2 {[%emt 0:00:38]} g5 {[%emt 0:02:02]} 40. hxg5+ {[%emt 0:00:17]} hxg5 {[%emt 0:00:12]} 41. Kf3 {[%emt 0:00:18]} Ra2 {[%emt 0:00:20]} 42. Ne3 {[%emt 0:00:31]} g4+ {[%emt 0:01:43]} 43. Kg2 {[%emt 0:00:21]} Ke5 {[%emt 0:00:20]} 44. Nc4+ {[%emt 0:00:15]} Kd4 {[%emt 0:02:05]} 45. Ne3 {[%emt 0:00:48]} Ke4 {[%emt 0:00:30]} 46. Nd1 {[%emt 0:00:48]} Ra3 {[%emt 0:02:11]} 47. Nb2 {[%emt 0:00:57]} Kd4 {[%emt 0:01:12]} 48. Nd1 {[%emt 0:03:00]} Rd3 {[%emt 0:00:47]} 49. Nb2 {[%emt 0:00:24]} Rd2 {[%emt 0:00:15]} 50. Na4 {[%emt 0:00:02]} Kc4 {[%emt 0:04:22]} 0-1

[Event "HUN-chT Youth-Children 2018"]
[Site "Zalakaros"]
[Date "2018.07.26"]
[Round "2"]
[White "Kratzmajer, Akos Gyorgy"]
[Black "Acs, Marton"]
[Result "1/2-1/2"]
[ECO "C44"]
[WhiteElo "1972"]
[BlackElo "2204"]
[Annotator "NA"]
[PlyCount "99"]
[EventDate "2018.07.26"]
[EventType "team-tourn"]
[EventCountry "HUN"]
[SourceTitle "playchess.com"]
[Source "ChessBase"]
[SourceQuality "1"]
[TimeControl "5400+30"]

1. e4 {[%emt 0:00:00]} e5 {[%emt 0:00:11]} 2. Nf3 {[%emt 0:00:00]} Nc6 {[%emt 0:00:07]} 3. d4 {[%emt 0:00:00]} exd4 {[%emt 0:00:15]} 4. Nxd4 {[%emt 0:00:00]} Nf6 {[%emt 0:00:20]} 5. Nc3 {[%emt 0:00:00]} Bb4 {[%emt 0:00:15]} 6. Nxc6 {[%emt 0:00:00]} bxc6 {[%emt 0:00:06]} 7. Bd3 {[%emt 0:00:04]} d5 {[%emt 0:00:31]} 8. exd5 {[%emt 0:00:05]} cxd5 {[%emt 0:00:09]} 9. O-O {[%emt 0:00:08]} O-O {[%emt 0:00:05]} 10. Bg5 {[%emt 0:00:04]} c6 {[%emt 0:01:43]} 11. Na4 Be6 12. Rc1 {[%emt 0:03:10]} Be7 {[%emt 0:29:18]} 13. c4 {[%emt 0:02:48]} d4 {[%emt 0:03:23]} 14. a3 Rb8 {[%emt 0:10:00]} 15. b4 {[%emt 0:13:37]} a5 {[%emt 0:01:04]} 16. Bxf6 {[%emt 0:03:15]} Bxf6 {[%emt 0:01:50]} 17. b5 {[%emt 0:05:32]} Be7 {[%emt 0:08:17]} 18. b6 {[%emt 0:13:16]} Bxa3 {[%emt 0:10:00]} 19. Bxh7+ {[%emt 0:03:51]} Kxh7 {[%emt 0:05:52]} 20. Qd3+ {[%emt 0:00:07]} g6 {[%emt 0:02:39]} 21. Qxa3 {[%emt 0:00:07]} Bf5 {[%emt 0:03:45]} 22. Qc5 {[%emt 0:04:09]} d3 {[%emt 0:01:16]} 23. Qxa5 {[%emt 0:06:17]} Qd4 {[%emt 0:09:23]} 24. Qc3 {[%emt 0:22:48]} Rfd8 {[%emt 0:01:00]} 25. Rfd1 {[%emt 0:04:53]} d2 {[%emt 0:03:17]} 26. Qxd4 {[%emt 0:03:16]} Rxd4 {[%emt 0:00:16]} 27. Rc3 {[%emt 0:00:50]} Re8 {[%emt 0:01:32]} 28. Re3 {[%emt 0:00:30]} Rxe3 {[%emt 0:05:49]} 29. fxe3 {[%emt 0:00:12]} Rxc4 {[%emt 0:00:07]} 30. b7 {[%emt 0:00:33]} Rb4 {[%emt 0:01:09]} 31. Nc5 {[%emt 0:00:08]} Rb1 {[%emt 0:01:03]} 32. Rxb1 {[%emt 0:03:38]} Bxb1 {[%emt 0:00:02]} 33. b8=Q {[%emt 0:00:13]} d1=Q+ {[%emt 0:00:07]} 34. Kf2 {[%emt 0:00:08]} Qc2+ {[%emt 0:01:40]} 35. Kf3 {[%emt 0:00:17]} Qf5+ {[%emt 0:00:24]} 36. Ke2 {[%emt 0:00:19]} Qc2+ {[%emt 0:00:46]} 37. Kf3 {[%emt 0:00:05]} Qf5+ {[%emt 0:00:04]} 38. Ke2 {[%emt 0:00:04]} Qxc5 {[%emt 0:00:20]} 39. Qxb1 {[%emt 0:00:24]} Qb5+ {[%emt 0:00:17]} 40. Qxb5 {[%emt 0:00:16]} cxb5 {[%emt 0:00:04]} 41. h4 {[%emt 0:07:51]} g5 {[%emt 0:01:03]} 42. hxg5 {[%emt 0:04:06]} Kg6 {[%emt 0:00:09]} 43. Kd3 {[%emt 0:00:25]} Kxg5 {[%emt 0:00:16]} 44. Kd4 Kf5 {[%emt 0:00:56]} 45. Kc5 {[%emt 0:00:45]} Ke4 {[%emt 0:00:19]} 46. Kxb5 {[%emt 0:00:06]} Kxe3 {[%emt 0:00:16]} 47. Kc5 {[%emt 0:00:06]} Kf2 {[%emt 0:01:15]} 48. Kd5 {[%emt 0:00:06]} Kxg2 {[%emt 0:00:11]} 49. Ke5 {[%emt 0:00:04]} f5 {[%emt 0:00:08]} 50. Kxf5 {[%emt 0:00:05]} 1/2-1/2

[Event "HUN-chT Youth-Children 2018"]
[Site "Zalakaros"]
[Date "2018.07.26"]
[Round "2"]
[White "Farkas, Otto Jr"]
[Black "Megyaszai, Balazs"]
[Result "0-1"]
[ECO "B90"]
[WhiteElo "1880"]
[BlackElo "1710"]
[Annotator "NA"]
[PlyCount "96"]
[EventDate "2018.07.26"]
[EventType "team-tourn"]
[EventCountry "HUN"]
[SourceTitle "playchess.com"]
[Source "ChessBase"]
[SourceQuality "1"]
[TimeControl "5400+30"]

1. e4 {[%emt 0:00:00]} c5 {[%emt 0:00:43]} 2. Nf3 {[%emt 0:00:00]} d6 {[%emt 0:00:28]} 3. d4 {[%emt 0:00:00]} cxd4 {[%emt 0:00:29]} 4. Nxd4 {[%emt 0:00:06]} Nf6 {[%emt 0:01:20]} 5. Nc3 {[%emt 0:00:14]} a6 {[%emt 0:00:56]} 6. f3 {[%emt 0:01:08]} e6 {[%emt 0:01:25]} 7. Be3 {[%emt 0:01:05]} Be7 {[%emt 0:01:30]} 8. Qd2 {[%emt 0:00:35]} Qc7 {[%emt 0:02:05]} 9. O-O-O {[%emt 0:00:25]} Nbd7 {[%emt 0:01:41]} 10. Kb1 {[%emt 0:01:43]} b5 {[%emt 0:02:29]} 11. g4 {[%emt 0:00:47]} Ne5 {[%emt 0:03:49]} 12. h4 {[%emt 0:04:43]} Bb7 {[%emt 0:05:27]} 13. g5 {[%emt 0:04:42]} Nfd7 {[%emt 0:03:18]} 14. Rg1 {[%emt 0:09:31]} b4 {[%emt 0:03:21]} 15. Na4 {[%emt 0:01:37]} d5 {[%emt 0:02:34]} 16. f4 {[%emt 0:08:24]} Nc4 {[%emt 0:02:25]} 17. Bxc4 {[%emt 0:00:52]} dxc4 {[%emt 0:01:00]} 18. e5 {[%emt 0:04:16]} Bd5 {[%emt 0:07:24]} 19. Nf5 {[%emt 0:16:57]} Bf8 {[%emt 0:06:38]} 20. Qd4 {[%emt 0:12:04]} Qc6 {[%emt 0:12:35]} 21. b3 {[%emt 0:04:27]} cxb3 {[%emt 0:01:39]} 22. axb3 {[%emt 0:00:33]} Be4 {[%emt 0:07:49]} 23. Qxd7+ {[%emt 0:03:10]} Qxd7 {[%emt 0:00:10]} 24. Rxd7 {[%emt 0:00:05]} Kxd7 {[%emt 0:00:18]} 25. Nb6+ {[%emt 0:00:06]} Kc6 {[%emt 0:01:29]} 26. Nxa8 {[%emt 0:00:48]} Bxf5 {[%emt 0:01:11]} 27. Nb6 {[%emt 0:00:36]} Be7 {[%emt 0:01:51]} 28. Rd1 {[%emt 0:01:09]} Rd8 {[%emt 0:01:28]} 29. Rxd8 {[%emt 0:01:41]} Bxd8 {[%emt 0:00:09]} 30. Nc4 {[%emt 0:00:06]} Be7 {[%emt 0:01:01]} 31. Kb2 {[%emt 0:00:53]} Kd5 {[%emt 0:03:19]} 32. Nd2 {[%emt 0:00:09]} f6 {[%emt 0:01:43]} 33. exf6 {[%emt 0:00:28]} gxf6 {[%emt 0:00:26]} 34. c4+ {[%emt 0:01:06]} bxc3+ {[%emt 0:00:22]} 35. Kxc3 {[%emt 0:00:11]} fxg5 {[%emt 0:00:47]} 36. hxg5 {[%emt 0:00:07]} e5 {[%emt 0:01:49]} 37. b4 {[%emt 0:02:15]} Bf8 {[%emt 0:01:42]} 38. fxe5 {[%emt 0:05:56]} Kxe5 {[%emt 0:01:12]} 39. Kb3 {[%emt 0:02:03]} Bd7 {[%emt 0:01:48]} 40. Kc3 {[%emt 0:04:32]} Be7 {[%emt 0:00:55]} 41. Nf1 {[%emt 0:02:47]} Ke4 {[%emt 0:05:41]} 42. Bd2 {[%emt 0:00:14]} Bd6 {[%emt 0:01:34]} 43. Ne3 {[%emt 0:02:20]} Bf4 {[%emt 0:01:46]} 44. Nc4 {[%emt 0:02:06]} Bxd2+ {[%emt 0:00:35]} 45. Nxd2+ {[%emt 0:00:54]} Kf4 {[%emt 0:00:58]} 46. Kd4 {[%emt 0:00:18]} Kxg5 {[%emt 0:00:18]} 47. Nf3+ {[%emt 0:00:41]} Kf4 {[%emt 0:00:24]} 48. Ne5 {[%emt 0:00:31]} Bb5 {[%emt 0:00:14]} 0-1

[Event "HUN-chT Youth-Children 2018"]
[Site "Zalakaros"]
[Date "2018.07.26"]
[Round "2"]
[White "Fodor, Kornel"]
[Black "Dora, Bence"]
[Result "1-0"]
[ECO "C45"]
[WhiteElo "1794"]
[BlackElo "1630"]
[Annotator "NA"]
[PlyCount "69"]
[EventDate "2018.07.26"]
[EventType "team-tourn"]
[EventCountry "HUN"]
[SourceTitle "playchess.com"]
[Source "ChessBase"]
[SourceQuality "1"]
[TimeControl "5400+30"]

1. e4 {[%emt 0:00:00]} e5 {[%emt 0:00:05]} 2. Nf3 {[%emt 0:00:00]} Nc6 {[%emt 0:00:06]} 3. d4 {[%emt 0:00:00]} exd4 {[%emt 0:00:11]} 4. Nxd4 {[%emt 0:00:00]} Bc5 {[%emt 0:00:30]} 5. Nb3 {[%emt 0:00:00]} Bb6 {[%emt 0:01:03]} 6. Nc3 {[%emt 0:00:00]} d6 {[%emt 0:02:00]} 7. Qe2 {[%emt 0:00:27]} Nf6 {[%emt 0:01:50]} 8. Bg5 {[%emt 0:04:01]} h6 {[%emt 0:01:14]} 9. Bh4 {[%emt 0:00:44]} g5 {[%emt 0:03:56]} 10. Bg3 {[%emt 0:00:27]} h5 {[%emt 0:00:34]} 11. h4 {[%emt 0:17:50]} Ng4 {[%emt 0:10:00]} 12. O-O-O {[%emt 0:08:33]} Be6 {[%emt 0:05:07]} 13. Nd5 {[%emt 0:05:25]} Bxd5 {[%emt 0:22:50]} 14. exd5+ {[%emt 0:00:24]} Nce5 {[%emt 0:00:09]} 15. hxg5 {[%emt 0:15:03]} Qxg5+ {[%emt 0:06:10]} 16. Kb1 {[%emt 0:00:19]} Qe7 {[%emt 0:01:39]} 17. f4 {[%emt 0:13:24]} Ng6 {[%emt 0:02:24]} 18. Qd2 {[%emt 0:06:23]} O-O-O {[%emt 0:02:41]} 19. f5 {[%emt 0:04:24]} N6e5 {[%emt 0:02:58]} 20. Bh4 {[%emt 0:00:29]} f6 {[%emt 0:02:42]} 21. Nd4 {[%emt 0:01:03]} Bxd4 {[%emt 0:01:14]} 22. Qxd4 {[%emt 0:00:09]} Kb8 {[%emt 0:01:30]} 23. Rh3 {[%emt 0:01:24]} Nd7 {[%emt 0:08:58]} 24. Re1 {[%emt 0:03:47]} Nge5 {[%emt 0:01:06]} 25. Bf2 {[%emt 0:00:42]} Nb6 {[%emt 0:01:26]} 26. a4 {[%emt 0:00:47]} a5 {[%emt 0:04:40]} 27. Qd2 {[%emt 0:03:23]} Qf7 {[%emt 0:07:19]} 28. Qxa5 {[%emt 0:01:19]} Ned7 {[%emt 0:00:20]} 29. Re6 {[%emt 0:03:27]} Nf8 {[%emt 0:01:50]} 30. Rb3 {[%emt 0:05:49]} Nxe6 {[%emt 0:02:07]} 31. fxe6 {[%emt 0:00:12]} Qe7 {[%emt 0:01:25]} 32. Rxb6 {[%emt 0:00:36]} cxb6 {[%emt 0:00:52]} 33. Bxb6 {[%emt 0:00:12]} Rdg8 {[%emt 0:00:45]} 34. Qa7+ {[%emt 0:00:09]} Kc8 {[%emt 0:00:05]} 35. Qa8# {[%emt 0:00:07]} 1-0

[Event "HUN-chT Youth-Children 2018"]
[Site "Zalakaros"]
[Date "2018.07.26"]
[Round "2"]
[White "Kocsmar, Akos"]
[Black "Szalay-Ocsak, Bank"]
[Result "1/2-1/2"]
[ECO "B53"]
[WhiteElo "1721"]
[BlackElo "1639"]
[Annotator "NA"]
[PlyCount "65"]
[EventDate "2018.07.26"]
[EventType "team-tourn"]
[EventCountry "HUN"]
[SourceTitle "playchess.com"]
[Source "ChessBase"]
[SourceQuality "1"]
[TimeControl "5400+30"]

1. e4 {[%emt 0:00:00]} c5 {[%emt 0:00:15]} 2. Nf3 {[%emt 0:00:13]} d6 {[%emt 0:00:13]} 3. d4 {[%emt 0:00:38]} cxd4 {[%emt 0:00:27]} 4. Qxd4 {[%emt 0:02:21]} Nc6 {[%emt 0:03:01]} 5. Bb5 {[%emt 0:00:25]} Bd7 {[%emt 0:05:24]} 6. Bxc6 {[%emt 0:01:23]} bxc6 {[%emt 0:01:45]} 7. Nc3 {[%emt 0:00:11]} Nf6 {[%emt 0:01:03]} 8. e5 {[%emt 0:01:34]} dxe5 {[%emt 0:07:57]} 9. Nxe5 {[%emt 0:00:42]} Qb6 {[%emt 0:02:34]} 10. Qc4 {[%emt 0:16:36]} e6 {[%emt 0:05:13]} 11. O-O {[%emt 0:01:38]} Be7 {[%emt 0:04:56]} 12. b3 {[%emt 0:06:40]} Qc5 {[%emt 0:07:37]} 13. Re1 {[%emt 0:04:39]} O-O {[%emt 0:15:54]} 14. Bb2 {[%emt 0:10:54]} Rfd8 {[%emt 0:10:17]} 15. Rad1 {[%emt 0:03:16]} Qxc4 {[%emt 0:03:53]} 16. Nxc4 {[%emt 0:00:14]} c5 {[%emt 0:00:08]} 17. f4 {[%emt 0:01:18]} Bc6 {[%emt 0:01:28]} 18. Ne5 {[%emt 0:01:12]} Bb7 {[%emt 0:00:09]} 19. Ba3 {[%emt 0:04:50]} Rac8 {[%emt 0:12:04]} 20. g3 {[%emt 0:17:23]} h6 {[%emt 0:03:19]} 21. Kf2 {[%emt 0:10:14]} Bf8 {[%emt 0:01:21]} 22. Na4 {[%emt 0:04:20]} Ne4+ {[%emt 0:00:53]} 23. Ke3 {[%emt 0:00:32]} f5 {[%emt 0:01:52]} 24. c4 {[%emt 0:01:18]} Rd4 {[%emt 0:01:51]} 25. Bb2 {[%emt 0:00:34]} Rdd8 {[%emt 0:00:10]} 26. Rf1 {[%emt 0:01:12]} Be7 {[%emt 0:01:34]} 27. Ng6 {[%emt 0:00:46]} Bf8 {[%emt 0:01:03]} 28. Be5 {[%emt 0:00:41]} Kf7 {[%emt 0:00:33]} 29. Nh4 {[%emt 0:00:25]} g6 {[%emt 0:00:37]} 30. Nf3 {[%emt 0:00:40]} Bg7 {[%emt 0:00:15]} 31. Rfe1 {[%emt 0:01:46]} Bxe5 {[%emt 0:01:04]} 32. Nxe5+ {[%emt 0:00:01]} Kf6 {[%emt 0:00:02]} 33. Rf1 {[%emt 0:00:49]} 1/2-1/2

[Event "HUN-chT Youth-Children 2018"]
[Site "Zalakaros"]
[Date "2018.07.26"]
[Round "2"]
[White "Balogh, Judit Dora"]
[Black "Kiss, Eniko"]
[Result "0-1"]
[ECO "D85"]
[WhiteElo "1674"]
[BlackElo "1697"]
[Annotator "NA"]
[PlyCount "44"]
[EventDate "2018.07.26"]
[EventType "team-tourn"]
[EventCountry "HUN"]
[SourceTitle "playchess.com"]
[Source "ChessBase"]
[SourceQuality "1"]
[TimeControl "5400+30"]

1. d4 {[%emt 0:00:00]} Nf6 {[%emt 0:00:04]} 2. c4 {[%emt 0:00:00]} g6 {[%emt 0:00:12]} 3. Nc3 {[%emt 0:00:51]} d5 {[%emt 0:00:03]} 4. cxd5 {[%emt 0:01:55]} Nxd5 {[%emt 0:00:02]} 5. Bd2 {[%emt 0:02:10]} Bg7 {[%emt 0:01:53]} 6. e3 {[%emt 0:01:55]} e5 {[%emt 0:13:55]} 7. Qb3 {[%emt 0:06:34]} Nxc3 {[%emt 0:08:22]} 8. bxc3 {[%emt 0:01:40]} O-O {[%emt 0:04:46]} 9. Rd1 {[%emt 0:03:27]} b6 {[%emt 0:03:32]} 10. d5 {[%emt 0:04:44]} Nd7 {[%emt 0:03:45]} 11. c4 {[%emt 0:08:25]} Nc5 {[%emt 0:01:03]} 12. Qa3 {[%emt 0:01:49]} Ne4 {[%emt 0:19:51]} 13. Bb4 {[%emt 0:06:17]} Re8 {[%emt 0:15:05]} 14. f3 {[%emt 0:01:15]} Qh4+ {[%emt 0:01:45]} 15. Ke2 {[%emt 0:03:01]} Qf2+ {[%emt 0:11:56]} 16. Kd3 {[%emt 0:00:55]} Nc5+ {[%emt 0:01:14]} 17. Bxc5 {[%emt 0:01:32]} e4+ {[%emt 0:04:15]} 18. fxe4 {[%emt 0:00:47]} bxc5 {[%emt 0:03:08]} 19. Nf3 {[%emt 0:02:46]} Bf5 {[%emt 0:01:59]} 20. Nd2 {[%emt 0:06:22]} Rxe4 {[%emt 0:00:42]} 21. Kc2 {[%emt 0:15:02]} Rxc4+ {[%emt 0:00:20]} 22. Kb3 {[%emt 0:01:13]} Rc3+ {[%emt 0:00:04]} 0-1